bitfinex-derivatives/quotes_BTCF0:USTF0_20250629
["timestamp","ask_amount","ask_price","bid_price","bid_amount"]
[1751166939998,0.57954997,107350.0,107340.0,1.14270852]
[1751166940208,0.57954997,107350.0,107340.0,1.86430852]
[1751166947606,0.57954997,107350.0,107340.0,1.14270852]
[1751166947808,0.57954997,107350.0,107340.0,1.86430852]
[1751166954212,0.57954997,107350.0,107340.0,1.80854861]
[1751166955617,0.45158997,107350.0,107340.0,1.80854861]
[1751166956009,0.57950997,107350.0,107340.0,1.80854861]
[1751166956209,0.45158997,107350.0,107340.0,1.80854861]
[1751166956510,0.57950997,107350.0,107340.0,1.80854861]
[1751166959518,0.45158997,107350.0,107340.0,1.80854861]
[1751166959707,0.57950997,107350.0,107340.0,1.80854861]
[1751166960315,0.45158997,107350.0,107340.0,1.80854861]
[1751166960520,0.57950997,107350.0,107340.0,1.80854861]
[1751166964134,0.57950997,107350.0,107340.0,1.86430852]
[1751166967738,0.57950997,107350.0,107340.0,1.30390852]
[1751166967931,0.57950997,107350.0,107340.0,1.86422852]
[1751166970640,0.57950997,107350.0,107340.0,1.14262852]
[1751166970933,0.57950997,107350.0,107340.0,1.50342852]
[1751166971130,0.57950997,107350.0,107340.0,1.86422852]
[1751166979047,0.57950997,107350.0,107340.0,1.14262852]
[1751166979343,0.57950997,107350.0,107340.0,1.86422852]
[1751166984449,0.51590997,107350.0,107340.0,1.76792852]
[1751166987550,0.51590997,107350.0,107340.0,1.04632852]
[1751166987750,0.51590997,107350.0,107340.0,1.79942852]
[1751166992846,0.51590997,107350.0,107340.0,1.76792852]
[1751166994349,0.51590997,107350.0,107340.0,1.71216861]
[1751166994553,0.51590997,107350.0,107340.0,1.74436861]
[1751166995050,0.51590997,107350.0,107340.0,1.02276861]
[1751166995350,0.51590997,107350.0,107340.0,1.74436861]
[1751166995950,0.51590997,107350.0,107340.0,1.02276861]
[1751166996451,0.51590997,107350.0,107340.0,1.74436861]
[1751166996651,0.51590997,107350.0,107340.0,1.48674804]
[1751166996850,0.51590997,107350.0,107340.0,1.74436861]
[1751166997039,0.51590997,107350.0,107340.0,1.77746861]
[1751166997245,0.51590997,107350.0,107340.0,1.51984804]
[1751166997444,0.51590997,107350.0,107340.0,1.77746861]
[1751166998552,0.51590997,107350.0,107340.0,1.05586861]
[1751166998751,0.51590997,107350.0,107340.0,1.77746861]
[1751167001248,0.51590997,107350.0,107340.0,1.05586861]
[1751167001452,0.51590997,107350.0,107340.0,1.77746861]
[1751167004857,0.51590997,107350.0,107340.0,1.83322852]
[1751167012067,0.2582894,107350.0,107340.0,1.83322852]
[1751167012364,0.51590997,107350.0,107340.0,1.86362852]
[1751167014668,0.2582894,107350.0,107340.0,1.86362852]
[1751167014964,0.51590997,107350.0,107340.0,1.86362852]
[1751167020970,0.51590997,107350.0,107340.0,1.14202852]
[1751167021168,0.51590997,107350.0,107340.0,1.86362852]
[1751167021572,0.51590997,107350.0,107340.0,1.14202852]
[1751167021770,0.51590997,107350.0,107340.0,1.86362852]
[1751167022169,0.51590997,107350.0,107340.0,1.14202852]
[1751167022370,0.51590997,107350.0,107340.0,1.86362852]
[1751167030674,0.1303694,107350.0,107340.0,1.86362852]
[1751167030876,0.69522417,107360.0,107350.0,0.1489937]
[1751167031180,0.66312417,107360.0,107350.0,0.89883965]
[1751167032180,0.66312417,107360.0,107350.0,0.90083965]
[1751167032782,0.53528417,107360.0,107350.0,0.90083965]
[1751167032984,0.66312417,107360.0,107350.0,0.90083965]
[1751167033179,0.66312417,107360.0,107350.0,0.90283965]
[1751167034481,0.53528417,107360.0,107350.0,0.90283965]
[1751167034681,0.66312417,107360.0,107350.0,0.91231417]
[1751167034888,0.53528417,107360.0,107350.0,0.91231417]
[1751167035076,0.66312417,107360.0,107350.0,0.91231417]
[1751167035985,0.4055036,107360.0,107350.0,0.91231417]
[1751167036176,0.66312417,107360.0,107350.0,0.91231417]
[1751167036484,0.66312417,107360.0,107350.0,0.90283965]
[1751167039481,0.56808417,107360.0,107350.0,0.90283965]
[1751167039680,0.69592417,107360.0,107350.0,0.90283965]
[1751167041091,0.56808417,107360.0,107350.0,0.90283965]
[1751167041386,0.69592417,107360.0,107350.0,0.90283965]
[1751167042281,0.56808417,107360.0,107350.0,0.90283965]
[1751167042488,0.69592417,107360.0,107350.0,0.90283965]
[1751167043187,0.56808417,107360.0,107350.0,0.90283965]
[1751167043390,0.69592417,107360.0,107350.0,0.90283965]
[1751167044289,0.69592417,107360.0,107350.0,0.86561427]
[1751167048383,0.69592417,107360.0,107350.0,0.88087471]
[1751167048794,0.69592417,107360.0,107350.0,0.62325414]
[1751167048998,0.69592417,107360.0,107350.0,0.88087471]
[1751167049692,0.56808417,107360.0,107350.0,0.88087471]
[1751167049893,0.69592417,107360.0,107350.0,0.88087471]
[1751167050494,0.71258258,107360.0,107350.0,0.88087471]
[1751167051193,0.71258258,107360.0,107350.0,0.52007471]
[1751167051393,0.71258258,107360.0,107350.0,0.88087471]
[1751167051992,0.58474258,107360.0,107350.0,0.88087471]
[1751167052187,0.71258258,107360.0,107350.0,0.88087471]
[1751167052596,0.58474258,107360.0,107350.0,0.88087471]
[1751167052892,0.71258258,107360.0,107350.0,0.88087471]
[1751167053088,0.58474258,107360.0,107350.0,0.88087471]
[1751167053294,0.71258258,107360.0,107350.0,0.88087471]
[1751167053591,0.58474258,107360.0,107350.0,0.88087471]
[1751167053792,0.71258258,107360.0,107350.0,0.88087471]
[1751167054296,0.71258258,107360.0,107350.0,0.91810009]
[1751167054599,0.71258258,107360.0,107350.0,0.55730009]
[1751167054898,0.71258258,107360.0,107350.0,0.91810009]
[1751167055292,0.58474258,107360.0,107350.0,0.91810009]
[1751167055498,0.71258258,107360.0,107350.0,0.91810009]
[1751167059399,0.71258258,107360.0,107350.0,0.66047952]
[1751167059595,0.71258258,107360.0,107350.0,0.91810009]
[1751167060000,0.58474258,107360.0,107350.0,0.91810009]
[1751167060297,0.71258258,107360.0,107350.0,0.91810009]
[1751167061197,0.58474258,107360.0,107350.0,0.91810009]
[1751167061397,0.71258258,107360.0,107350.0,0.91810009]
[1751167062299,0.58474258,107360.0,107350.0,0.91810009]
[1751167062500,0.71258258,107360.0,107350.0,0.91810009]
[1751167066505,0.58474258,107360.0,107350.0,0.91810009]
[1751167066706,0.71258258,107360.0,107350.0,0.91810009]
[1751167067604,0.58474258,107360.0,107350.0,0.91810009]
[1751167067903,0.71258258,107360.0,107350.0,0.91810009]
[1751167068503,0.58474258,107360.0,107350.0,0.91810009]
[1751167068705,0.71258258,107360.0,107350.0,0.91810009]
[1751167068900,0.71258258,107360.0,107350.0,0.55730009]
[1751167069103,0.71258258,107360.0,107350.0,0.91810009]
[1751167071603,0.58474258,107360.0,107350.0,0.91810009]
[1751167071806,0.71258258,107360.0,107350.0,0.91810009]
[1751167072904,0.58474258,107360.0,107350.0,0.91810009]
[1751167073104,0.71258258,107360.0,107350.0,0.91810009]
[1751167075306,0.71258258,107360.0,107350.0,0.97386]
[1751167078005,0.58474258,107360.0,107350.0,0.97386]
[1751167078303,0.71258258,107360.0,107350.0,0.97386]
[1751167080607,0.71258258,107360.0,107350.0,0.61306]
[1751167080807,0.71258258,107360.0,107350.0,0.97386]
[1751167081710,0.58474258,107360.0,107350.0,0.97386]
[1751167081911,0.71258258,107360.0,107350.0,0.97386]
[1751167084218,0.71258258,107360.0,107350.0,0.88087471]
[1751167084605,0.71258258,107360.0,107350.0,0.62325414]
[1751167085711,0.58474258,107360.0,107350.0,0.62325414]
[1751167085915,0.71258258,107360.0,107350.0,0.62325414]
[1751167086306,0.58474258,107360.0,107350.0,0.62325414]
[1751167086509,0.71258258,107360.0,107350.0,0.62325414]
[1751167087709,0.58474258,107360.0,107350.0,0.62325414]
[1751167087907,0.71258258,107360.0,107350.0,0.62325414]
[1751167088107,0.58474258,107360.0,107350.0,0.62325414]
[1751167088308,0.71258258,107360.0,107350.0,0.62325414]
[1751167089316,0.58474258,107360.0,107350.0,0.62325414]
[1751167089517,0.71258258,107360.0,107350.0,0.62325414]
[1751167089816,0.58474258,107360.0,107350.0,0.62325414]
[1751167090016,0.71258258,107360.0,107350.0,0.88087471]
[1751167090217,0.58474258,107360.0,107350.0,0.88087471]
[1751167090613,0.71258258,107360.0,107350.0,0.88087471]
[1751167091017,0.58474258,107360.0,107350.0,0.88087471]
[1751167091212,0.71258258,107360.0,107350.0,0.88087471]
[1751167092318,0.71258258,107360.0,107350.0,0.52007471]
[1751167092506,0.71258258,107360.0,107350.0,0.88087471]
[1751167093119,0.71258258,107360.0,107350.0,0.62325414]
[1751167093319,0.71258258,107360.0,107350.0,0.88087471]
[1751167094525,0.71258258,107360.0,107350.0,0.91810009]
[1751167095423,0.58474258,107360.0,107350.0,0.91810009]
[1751167095626,0.71258258,107360.0,107350.0,0.91810009]
[1751167098527,0.58474258,107360.0,107350.0,0.91810009]
[1751167098925,0.71258258,107360.0,107350.0,0.91810009]
[1751167100929,0.58474258,107360.0,107350.0,0.91810009]
[1751167101132,0.71258258,107360.0,107350.0,0.91810009]
[1751167103030,0.71258258,107360.0,107350.0,0.55730009]
[1751167103532,0.71258258,107360.0,107350.0,0.91810009]
[1751167104524,0.58474258,107360.0,107350.0,0.91810009]
[1751167104724,0.71258258,107360.0,107350.0,0.91810009]
[1751167107331,0.71258258,107360.0,107350.0,0.55730009]
[1751167107537,0.71258258,107360.0,107350.0,0.91810009]
[1751167109739,0.58474258,107360.0,107350.0,0.91810009]
[1751167110039,0.71258258,107360.0,107350.0,0.91810009]
[1751167111040,0.71258258,107360.0,107350.0,0.55730009]
[1751167111341,0.71258258,107360.0,107350.0,0.91810009]
[1751167111830,0.71258258,107360.0,107350.0,0.66047952]
[1751167112034,0.71258258,107360.0,107350.0,0.91810009]
[1751167112942,0.58474258,107360.0,107350.0,0.91810009]
[1751167113136,0.71258258,107360.0,107350.0,0.91810009]
[1751167114044,0.58474258,107360.0,107350.0,0.91810009]
[1751167114255,0.71258258,107360.0,107350.0,0.91810009]
[1751167114746,0.58474258,107360.0,107350.0,0.91810009]
[1751167114939,0.71258258,107360.0,107350.0,0.91810009]
[1751167116152,0.58474258,107360.0,107350.0,0.91810009]
[1751167116343,0.71254258,107360.0,107350.0,0.91810009]
[1751167116853,0.58474258,107360.0,107350.0,0.91810009]
[1751167117047,0.71254258,107360.0,107350.0,0.91810009]
[1751167119146,0.58474258,107360.0,107350.0,0.91810009]
[1751167119353,0.71254258,107360.0,107350.0,0.91810009]
[1751167119853,0.58474258,107360.0,107350.0,0.91810009]
[1751167120051,0.71254258,107360.0,107350.0,0.91810009]
[1751167125757,0.58474258,107360.0,107350.0,0.91810009]
[1751167125948,0.71254258,107360.0,107350.0,0.91810009]
[1751167129060,0.71254258,107360.0,107350.0,0.55730009]
[1751167129258,0.71254258,107360.0,107350.0,0.91810009]
[1751167130260,0.58474258,107360.0,107350.0,0.91810009]
[1751167130450,0.71254258,107360.0,107350.0,0.91810009]
[1751167131658,0.58474258,107360.0,107350.0,0.91810009]
[1751167132065,0.71254258,107360.0,107350.0,0.91810009]
[1751167132562,0.58474258,107360.0,107350.0,0.91810009]
[1751167132768,0.71254258,107360.0,107350.0,0.91810009]
[1751167134264,0.71254258,107360.0,107350.0,0.55730009]
[1751167134561,0.71254258,107360.0,107350.0,0.91810009]
[1751167135561,0.58474258,107360.0,107350.0,0.91810009]
[1751167135860,0.71254258,107360.0,107350.0,0.91810009]
[1751167136963,0.71254258,107360.0,107350.0,0.66047952]
[1751167137260,0.71254258,107360.0,107350.0,0.86513321]
[1751167138261,0.58474258,107360.0,107350.0,0.86513321]
[1751167138463,0.71254258,107360.0,107350.0,0.86513321]
[1751167140060,0.58474258,107360.0,107350.0,0.86513321]
[1751167140262,0.71254258,107360.0,107350.0,0.86513321]
[1751167141360,0.97016315,107360.0,107350.0,0.86513321]
[1751167142551,0.71254258,107360.0,107350.0,0.86513321]
[1751167142757,0.58474258,107360.0,107350.0,0.86513321]
[1751167143063,0.71254258,107360.0,107350.0,0.86513321]
[1751167144966,0.58474258,107360.0,107350.0,0.86513321]
[1751167145165,0.71254258,107360.0,107350.0,0.86513321]
[1751167146266,0.58474258,107360.0,107350.0,0.86513321]
[1751167146468,0.71254258,107360.0,107350.0,0.86513321]
[1751167146967,0.71254258,107360.0,107350.0,0.88780009]
[1751167148068,0.71254258,107360.0,107350.0,0.52700009]
[1751167148263,0.71254258,107360.0,107350.0,0.88780009]
[1751167148965,0.58474258,107360.0,107350.0,0.88780009]
[1751167149170,0.71254258,107360.0,107350.0,0.88780009]
[1751167149372,0.58474258,107360.0,107350.0,0.94356]
[1751167149560,0.71254258,107360.0,107350.0,0.94356]
[1751167150374,0.58474258,107360.0,107350.0,0.94356]
[1751167150874,0.71254258,107360.0,107350.0,0.94356]
[1751167153175,0.58474258,107360.0,107350.0,0.94356]
[1751167153368,0.71254258,107360.0,107350.0,0.94356]
[1751167154572,0.71254258,107360.0,107350.0,0.58276]
[1751167154868,0.71254258,107360.0,107350.0,0.94356]
[1751167155578,0.58474258,107360.0,107350.0,0.94356]
[1751167155778,0.71254258,107360.0,107350.0,0.94356]
[1751167157278,0.58474258,107360.0,107350.0,0.94356]
[1751167157678,0.71254258,107360.0,107350.0,0.94356]
[1751167158083,0.58474258,107360.0,107350.0,0.68593943]
[1751167158283,0.71254258,107360.0,107350.0,0.94356]
[1751167158580,0.58474258,107360.0,107350.0,0.94356]
[1751167158779,0.71254258,107360.0,107350.0,0.94356]
[1751167159078,0.97016315,107360.0,107350.0,0.94356]
[1751167159679,0.84236315,107360.0,107350.0,0.94356]
[1751167160279,0.97016315,107360.0,107350.0,0.94356]
[1751167161178,0.97016315,107360.0,107350.0,0.58276]
[1751167161379,0.97016315,107360.0,107350.0,0.94356]
[1751167162382,0.84236315,107360.0,107350.0,0.94356]
[1751167162681,0.97016315,107360.0,107350.0,0.94356]
[1751167163782,0.84236315,107360.0,107350.0,0.94356]
[1751167164474,0.97016315,107360.0,107350.0,0.94356]
[1751167164781,0.84236315,107360.0,107350.0,0.94356]
[1751167164981,0.97016315,107360.0,107350.0,0.94356]
[1751167165682,0.84236315,107360.0,107350.0,0.94356]
[1751167165882,0.97016315,107360.0,107350.0,0.94356]
[1751167166379,0.84236315,107360.0,107350.0,0.94356]
[1751167166682,0.97016315,107360.0,107350.0,0.94356]
[1751167167181,0.84236315,107360.0,107350.0,0.94356]
[1751167167378,0.97016315,107360.0,107350.0,0.94356]
[1751167169280,0.97016315,107360.0,107350.0,0.92829956]
[1751167171385,0.97016315,107360.0,107350.0,0.67067899]
[1751167171386,0.84236315,107360.0,107350.0,0.67067899]
[1751167171578,0.97016315,107360.0,107350.0,0.92829956]
[1751167171782,0.95350474,107360.0,107350.0,0.92829956]
[1751167175888,0.82570474,107360.0,107350.0,0.92829956]
[1751167176090,0.95350474,107360.0,107350.0,0.92829956]
[1751167176282,0.95350474,107360.0,107350.0,0.67067899]
[1751167176479,0.95350474,107360.0,107350.0,0.92829956]
[1751167177187,0.95350474,107360.0,107350.0,0.67067899]
[1751167177498,0.82570474,107360.0,107350.0,0.85559814]
[1751167177692,0.95350474,107360.0,107350.0,0.85559814]
[1751167178188,1.31430474,107360.0,107350.0,0.004]
[1751167178494,1.31430474,107360.0,107350.0,0.01807342]
[1751167178495,1.34700474,107360.0,107350.0,0.01807342]
[1751167179789,1.34700474,107360.0,107350.0,0.01607342]
[1751167180594,1.34700474,107360.0,107350.0,0.01407342]
[1751167181293,0.1489937,107350.0,107340.0,0.41311]
[1751167181488,0.49711427,107350.0,107340.0,0.4272445]
[1751167182593,0.49711427,107350.0,107340.0,0.4282445]
[1751167183294,0.49711427,107350.0,107340.0,0.39101912]
[1751167183793,0.49711427,107350.0,107340.0,0.4282445]
[1751167184293,0.49711427,107350.0,107340.0,0.39101912]
[1751167186281,0.49711427,107350.0,107340.0,0.54002672]
[1751167189598,0.49711427,107350.0,107340.0,0.17922672]
[1751167189794,0.49711427,107350.0,107340.0,0.54002672]
[1751167190987,0.49711427,107350.0,107340.0,0.57302672]
[1751167191896,0.49711427,107350.0,107340.0,0.21222672]
[1751167192094,0.49711427,107350.0,107340.0,0.57302672]
[1751167194397,0.49711427,107350.0,107340.0,0.6102521]
[1751167196101,0.49711427,107350.0,107340.0,0.5961176]
[1751167198703,0.46701427,107350.0,107340.0,0.5961176]
[1751167206110,0.46701427,107350.0,107340.0,0.61025409]
[1751167209320,0.46701427,107350.0,107340.0,0.24945409]
[1751167209517,0.46701427,107350.0,107340.0,0.61025409]
[1751167210017,0.59489427,107350.0,107340.0,0.61025409]
[1751167212320,0.59489427,107350.0,107340.0,0.666014]
[1751167213927,0.59489427,107350.0,107340.0,0.305214]
[1751167214425,0.59489427,107350.0,107340.0,0.666014]
[1751167224329,0.59489427,107350.0,107340.0,0.61025409]
[1751167228733,0.59489427,107350.0,107340.0,0.57302871]
[1751167229630,0.59489427,107350.0,107340.0,0.21222871]
[1751167229827,0.59489427,107350.0,107340.0,0.57302871]
[1751167233635,0.59489427,107350.0,107340.0,0.61025409]
[1751167234437,0.59489427,107350.0,107340.0,0.666014]
[1751167239039,0.3372737,107350.0,107340.0,0.666014]
[1751167239232,0.59489427,107350.0,107340.0,0.92363457]
[1751167242040,0.59489427,107350.0,107340.0,0.56283457]
[1751167242240,0.59489427,107350.0,107340.0,0.92363457]
[1751167248043,0.59489427,107350.0,107340.0,0.56283457]
[1751167248244,0.59489427,107350.0,107340.0,0.92363457]
[1751167249142,0.59489427,107350.0,107340.0,0.666014]
[1751167253548,0.59489427,107350.0,107340.0,0.305214]
[1751167253738,0.59489427,107350.0,107340.0,0.666014]
[1751167255946,0.59489427,107350.0,107340.0,0.305214]
[1751167256147,0.59489427,107350.0,107340.0,0.666014]
[1751167256346,0.59489427,107350.0,107340.0,0.66602696]
[1751167256948,0.59489427,107350.0,107340.0,0.65187751]
[1751167258046,0.59489427,107350.0,107340.0,0.29107751]
[1751167258242,0.59489427,107350.0,107340.0,0.90949808]
[1751167260447,0.59489427,107350.0,107340.0,0.92364753]
[1751167263253,0.59489427,107350.0,107340.0,0.56284753]
[1751167263444,0.59489427,107350.0,107340.0,0.92364753]
[1751167264351,0.59489427,107350.0,107340.0,0.61026705]
[1751167266352,0.59489427,107350.0,107340.0,0.86788762]
[1751167269557,0.59489427,107350.0,107340.0,0.61026705]
[1751167274357,0.59489427,107350.0,107340.0,0.57304167]
[1751167276066,0.59489427,107350.0,107340.0,0.21224167]
[1751167276266,0.59489427,107350.0,107340.0,0.57304167]
[1751167282669,0.59489427,107350.0,107340.0,0.83066224]
[1751167283763,0.59489427,107350.0,107340.0,0.57304167]
[1751167284371,0.59489427,107350.0,107340.0,0.61026705]
[1751167286179,0.59489427,107350.0,107340.0,0.5961176]
[1751167287080,0.59489427,107350.0,107340.0,0.2353176]
[1751167287378,0.59489427,107350.0,107340.0,0.5961176]
[1751167288471,0.59489427,107350.0,107340.0,0.6605176]
[1751167288670,0.59489427,107350.0,107340.0,0.91813817]
[1751167291882,0.59489427,107350.0,107340.0,0.90305355]
[1751167299485,0.59489427,107350.0,107340.0,0.91720654]
[1751167306180,0.59489427,107350.0,107340.0,0.90305355]
[1751167307285,0.3372737,107350.0,107340.0,0.90305355]
[1751167307583,0.59489427,107350.0,107340.0,0.90305355]
[1751167311286,0.59489427,107350.0,107340.0,0.54225355]
[1751167311486,0.59489427,107350.0,107340.0,0.90305355]
[1751167312282,0.59489427,107350.0,107340.0,0.54225355]
[1751167312485,0.59489427,107350.0,107340.0,0.90305355]
[1751167313286,0.59489427,107350.0,107340.0,0.54225355]
[1751167313584,0.59489427,107350.0,107340.0,0.90305355]
[1751167314388,0.59489427,107350.0,107340.0,0.86582817]
[1751167316181,0.59489427,107350.0,107340.0,0.87998109]
[1751167324492,0.59489427,107350.0,107340.0,0.91720647]
[1751167331084,0.59489427,107350.0,107340.0,0.55640647]
[1751167331287,0.59489427,107350.0,107340.0,0.91720647]
[1751167335199,0.59489427,107350.0,107340.0,0.55640647]
[1751167335400,0.59489427,107350.0,107340.0,0.91720647]
[1751167336199,0.59489427,107350.0,107340.0,0.90305355]
[1751167336602,0.59489427,107350.0,107340.0,0.54225355]
[1751167336900,0.59489427,107350.0,107340.0,0.90305355]
[1751167341301,0.59489427,107350.0,107340.0,0.54225355]
[1751167341600,0.59489427,107350.0,107340.0,0.90305355]
[1751167343902,0.59489427,107350.0,107340.0,0.54225355]
[1751167344102,0.59489427,107350.0,107340.0,0.90305355]
[1751167345503,0.59489427,107350.0,107340.0,0.91720685]
[1751167346307,0.59489427,107350.0,107340.0,0.55640685]
[1751167346507,0.59489427,107350.0,107340.0,0.91720685]
[1751167347606,0.59489427,107350.0,107340.0,0.55640685]
[1751167347804,0.59489427,107350.0,107340.0,0.91720685]
[1751167350904,0.59489427,107350.0,107340.0,0.65958628]
[1751167351104,0.59489427,107350.0,107340.0,0.91720685]
[1751167358307,0.59489427,107350.0,107340.0,0.55640685]
[1751167358513,0.59489427,107350.0,107340.0,0.91720685]
[1751167363411,0.59489427,107350.0,107340.0,0.76819925]
[1751167363624,0.59489427,107350.0,107340.0,0.55640685]
[1751167364414,0.59489427,107350.0,107340.0,0.51918147]
[1751167374314,0.59489427,107350.0,107340.0,0.55640685]
[1751167386329,0.59489427,107350.0,107340.0,0.54225355]
[1751167388330,0.59489427,107350.0,107340.0,0.28463298]
[1751167388531,0.59489427,107350.0,107340.0,0.54225355]
[1751167393732,0.53449427,107350.0,107340.0,0.44485355]
[1751167394125,0.53449427,107350.0,107340.0,0.18723298]
[1751167394333,0.59979427,107350.0,107340.0,0.21903298]
[1751167396342,0.59979427,107350.0,107340.0,0.23322145]
[1751167402950,0.59979427,107350.0,107340.0,0.19599607]
[1751167411159,0.59979427,107350.0,107340.0,0.1818076]
[1751167411856,0.59979427,107350.0,107340.0,0.19599613]
[1751167414561,0.2767137,107350.0,107340.0,0.85164208]
[1751167414858,0.59783427,107350.0,107340.0,0.85164208]
[1751167415560,0.59783427,107350.0,107340.0,0.85364208]
[1751167416556,0.59783427,107350.0,107340.0,0.85264208]
[1751167416750,0.59783427,107350.0,107340.0,0.85564208]
[1751167418165,0.59783427,107350.0,107340.0,0.59802151]
[1751167420858,0.59783427,107350.0,107340.0,0.6259551]
[1751167422865,0.59783427,107350.0,107340.0,0.59802151]
[1751167426665,0.1489937,107350.0,107340.0,0.85564208]
[1751167426871,0.1489937,107350.0,107340.0,1.77849403]
[1751167427164,0.40661427,107350.0,107340.0,1.77849403]
[1751167427565,0.40661427,107350.0,107340.0,1.74126865]
[1751167428267,0.40661427,107350.0,107340.0,1.48164808]
[1751167428565,0.40661427,107350.0,107340.0,1.48464808]
[1751167428967,0.40661427,107350.0,107340.0,1.74226865]
[1751167429267,0.40661427,107350.0,107340.0,1.48564808]
[1751167429567,0.40661427,107350.0,107340.0,1.12484808]
[1751167429766,0.40661427,107350.0,107340.0,1.84644808]
[1751167430166,0.40661427,107350.0,107340.0,1.88366361]
[1751167430466,0.1489937,107350.0,107340.0,1.88366361]
[1751167430766,0.40661427,107350.0,107340.0,1.88366361]
[1751167433566,0.40661427,107350.0,107340.0,1.16206361]
[1751167433764,0.40661427,107350.0,107340.0,1.88366361]
[1751167437271,0.40661397,107350.0,107340.0,1.88366361]
[1751167438169,0.61627351,107360.0,107350.0,0.1489934]
[1751167438362,0.61627351,107360.0,107350.0,0.89071625]
[1751167438865,0.61627351,107360.0,107350.0,0.92793178]
[1751167439262,0.61627351,107360.0,107350.0,0.93093178]
[1751167439464,0.61627351,107360.0,107350.0,0.93293178]
[1751167440072,0.61627351,107360.0,107350.0,0.57213178]
[1751167440270,0.61627351,107360.0,107350.0,0.93293178]
[1751167440658,0.48855351,107360.0,107350.0,0.93293178]
[1751167440865,0.48855351,107360.0,107350.0,0.94236338]
[1751167442070,0.19834164,107360.0,107350.0,0.94236338]
[1751167442465,0.45596221,107360.0,107350.0,0.97022101]
[1751167444373,0.19834164,107360.0,107350.0,0.97022101]
[1751167448277,0.1489795,107360.0,107350.0,1.08195941]
[1751167448477,0.1489795,107360.0,107350.0,1.11920661]
[1751167449377,0.65668553,107370.0,107360.0,0.1489796]
[1751167449577,0.65668553,107370.0,107360.0,1.49089743]
[1751167449774,0.52900553,107370.0,107360.0,1.49089743]
[1751167450879,0.52900553,107370.0,107360.0,1.49189743]
[1751167453181,0.27138496,107370.0,107360.0,1.49189743]
[1751167453878,0.27138496,107370.0,107360.0,1.49289743]
[1751167454378,0.27138496,107370.0,107360.0,1.45574471]
[1751167454978,0.30418496,107370.0,107360.0,1.45574471]
[1751167455371,0.56180553,107370.0,107360.0,1.45574471]
[1751167456381,0.56180553,107370.0,107360.0,1.19812414]
[1751167456678,0.56180553,107370.0,107360.0,1.45574471]
[1751167459683,0.30418496,107370.0,107360.0,1.45574471]
[1751167459980,0.56180553,107370.0,107360.0,1.45574471]
[1751167460279,0.56180553,107370.0,107360.0,1.42264471]
[1751167464388,0.56180553,107370.0,107360.0,1.45979743]
[1751167466091,0.56180553,107370.0,107360.0,1.43193289]
[1751167467392,0.56180553,107370.0,107360.0,1.4876928]
[1751167468791,0.54528267,107370.0,107360.0,1.4876928]
[1751167469085,0.54528267,107370.0,107360.0,1.50281917]
[1751167471398,0.54528267,107370.0,107360.0,1.2451986]
[1751167471696,0.54528267,107370.0,107360.0,1.50281917]
[1751167487298,0.54528267,107370.0,107360.0,1.53321917]
[1751167488204,0.54528267,107370.0,107360.0,1.49606645]
[1751167488602,0.2876621,107370.0,107360.0,1.49606645]
[1751167488906,0.54528267,107370.0,107360.0,1.49606645]
[1751167494411,0.54528267,107370.0,107360.0,1.50545699]
[1751167499117,0.54528267,107370.0,107360.0,1.14465699]
[1751167499316,0.54528267,107370.0,107360.0,1.50545699]
[1751167502519,0.2876621,107370.0,107360.0,1.50545699]
[1751167502718,0.54528267,107370.0,107360.0,1.50545699]
[1751167503723,0.54528267,107370.0,107360.0,1.58070473]
[1751167504422,0.54528267,107370.0,107360.0,1.57131419]
[1751167509626,0.54528267,107370.0,107360.0,1.21051419]
[1751167509827,0.54528267,107370.0,107360.0,1.57131419]
[1751167520735,0.2876621,107370.0,107360.0,1.57131419]
[1751167520934,0.54528267,107370.0,107360.0,1.57131419]
[1751167523436,0.54528267,107370.0,107360.0,1.31369362]
[1751167523737,0.54528267,107370.0,107360.0,1.57131419]
[1751167528837,0.48108267,107370.0,107360.0,1.47541419]
[1751167529038,0.48108267,107370.0,107360.0,0.91553419]
[1751167529237,0.54188267,107370.0,107360.0,1.50855419]
[1751167531344,0.54188267,107370.0,107360.0,1.43330645]
[1751167540562,0.54188267,107370.0,107360.0,1.07250645]
[1751167540756,0.54188267,107370.0,107360.0,1.43330645]
[1751167544459,0.54188267,107370.0,107360.0,1.41479244]
[1751167554569,0.54188267,107370.0,107360.0,1.43330645]
[1751167555567,0.54188267,107370.0,107360.0,1.07250645]
[1751167555768,0.54188267,107370.0,107360.0,1.43330645]
[1751167562877,0.54188267,107370.0,107360.0,1.07250645]
[1751167563175,0.54188267,107370.0,107360.0,1.43330645]
[1751167575188,0.54188267,107370.0,107360.0,1.07250645]
[1751167575385,0.54188267,107370.0,107360.0,1.43330645]
[1751167580487,0.54188267,107370.0,107360.0,1.40020645]
[1751167580693,0.48108267,107370.0,107360.0,1.40020645]
[1751167580887,0.48108267,107370.0,107360.0,1.43020645]
[1751167585992,0.48108267,107370.0,107360.0,1.40020645]
[1751167586391,0.51258267,107370.0,107360.0,1.43150645]
[1751167588598,0.51258267,107370.0,107360.0,1.07070645]
[1751167588896,0.51258267,107370.0,107360.0,1.43150645]
[1751167589304,0.51258267,107370.0,107360.0,1.41638008]
[1751167590306,0.51258267,107370.0,107360.0,0.85646008]
[1751167590506,0.54388267,107370.0,107360.0,1.41626008]
[1751167594510,0.54388267,107370.0,107360.0,1.39774365]
[1751167597113,0.54388267,107370.0,107360.0,1.03694365]
[1751167597409,0.54388267,107370.0,107360.0,1.39774365]
[1751167604516,0.54388267,107370.0,107360.0,1.41626008]
[1751167607921,0.54388267,107370.0,107360.0,1.05546008]
[1751167608117,0.54388267,107370.0,107360.0,1.41626008]
[1751167611321,0.54388267,107370.0,107360.0,1.15863951]
[1751167611515,0.54388267,107370.0,107360.0,1.41626008]
[1751167616021,0.54388267,107370.0,107360.0,1.05546008]
[1751167616222,0.54388267,107370.0,107360.0,1.41626008]
[1751167619529,0.54388267,107370.0,107360.0,1.15863951]
[1751167619728,0.54388267,107370.0,107360.0,1.41626008]
[1751167634543,0.54388267,107370.0,107360.0,1.45350361]
[1751167636843,0.54388267,107370.0,107360.0,1.3977437]
[1751167637247,0.54388267,107370.0,107360.0,1.42567572]
[1751167640649,0.54388267,107370.0,107360.0,1.3977437]
[1751167640946,0.54388267,107370.0,107360.0,1.42567457]
[1751167644546,0.54388267,107370.0,107360.0,1.45350361]
[1751167645741,0.54388267,107370.0,107360.0,0.48710344]
[1751167645939,0.80150324,107370.0,107360.0,0.12294962]
[1751167646140,0.83410324,107370.0,107360.0,0.06718971]
[1751167646342,1.39386324,107370.0,107360.0,0.06718971]
[1751167646540,2.89386324,107370.0,107360.0,0.06718971]
[1751167647246,2.89386324,107370.0,107360.0,0.02994618]
[1751167660769,1.39386324,107370.0,107360.0,0.02994618]
[1751167673285,1.39386324,107370.0,107360.0,0.06718971]
[1751167676081,1.39386324,107370.0,107360.0,0.02994618]
[1751167676792,2.89386324,107370.0,107360.0,0.02994618]
[1751167683092,1.39386324,107370.0,107360.0,0.02994618]
[1751167686192,1.39386324,107370.0,107360.0,0.06718971]
[1751167689596,1.41046294,107370.0,107360.0,0.06718971]
[1751167695801,1.77126294,107370.0,107360.0,0.02994618]